[Event "Betsys MČR v online bleskovém šachu 2021"]
[Site "Chess.com"]
[Date "2021.04.17"]
[Round "9"]
[White "machonza"]
[Black "Chessillusion213"]
[Result "1-0"]
[WhiteElo "2008"]
[BlackElo "2144"]
[TimeControl "180+1"]
[EndTime "10:31:07 PDT"]
[Termination "Uživatel machonza zvítězil na čas"]

1. e4 {[%clk 0:03:00.9]} 1... c5 {[%clk 0:02:59.6]} 2. Nf3 {[%clk 0:03:00.2]}
2... Nc6 {[%clk 0:02:59.7]} 3. Bb5 {[%clk 0:02:59.3]} 3... g6 {[%clk 0:02:59.1]}
4. O-O {[%clk 0:02:58.2]} 4... Bg7 {[%clk 0:02:59]} 5. Re1 {[%clk 0:02:58.1]}
5... Nf6 {[%clk 0:02:55.8]} 6. Nc3 {[%clk 0:02:51.9]} 6... O-O {[%clk
0:02:53.9]} 7. e5 {[%clk 0:02:50.6]} 7... Ne8 {[%clk 0:02:48.2]} 8. Bxc6 {[%clk
0:02:19]} 8... dxc6 {[%clk 0:02:44.1]} 9. h3 {[%clk 0:02:18.2]} 9... Nc7 {[%clk
0:02:43.5]} 10. Ne4 {[%clk 0:02:11.3]} 10... Ne6 {[%clk 0:02:39.2]} 11. d3
{[%clk 0:02:09.5]} 11... b6 {[%clk 0:02:38.1]} 12. a4 {[%clk 0:02:07.8]} 12...
Nd4 {[%clk 0:02:29]} 13. a5 {[%clk 0:02:02.5]} 13... Bf5 {[%clk 0:02:26.5]} 14.
Ng3 {[%clk 0:01:56.9]} 14... Be6 {[%clk 0:02:22.6]} 15. Ng5 {[%clk 0:01:48.4]}
15... h6 {[%clk 0:02:11.3]} 16. Nxe6 {[%clk 0:01:47.1]} 16... Nxe6 {[%clk
0:02:11.1]} 17. f4 {[%clk 0:01:31.8]} 17... Nd4 {[%clk 0:01:48.7]} 18. c3 {[%clk
0:01:28]} 18... Nf5 {[%clk 0:01:33.2]} 19. Nxf5 {[%clk 0:01:25.4]} 19... gxf5
{[%clk 0:01:33.1]} 20. Qh5 {[%clk 0:01:23.3]} 20... e6 {[%clk 0:01:32]} 21. Re3
{[%clk 0:01:22.9]} 21... Kh7 {[%clk 0:01:20.1]} 22. g4 {[%clk 0:01:20.5]} 22...
fxg4 {[%clk 0:01:13.9]} 23. hxg4 {[%clk 0:01:20.1]} 23... f6 {[%clk 0:01:14.1]}
24. f5 {[%clk 0:01:15.1]} 24... Qe8 {[%clk 0:01:04.4]} 25. exf6 {[%clk
0:00:53.6]} 25... Qxh5 {[%clk 0:00:43.4]} 26. gxh5 {[%clk 0:00:53]} 26... Bxf6
{[%clk 0:00:39.7]} 27. Rxe6 {[%clk 0:00:47.9]} 27... Rad8 {[%clk 0:00:32.8]} 28.
axb6 {[%clk 0:00:32.2]} 28... axb6 {[%clk 0:00:32.4]} 29. Ra7+ {[%clk
0:00:30.5]} 29... Kh8 {[%clk 0:00:24]} 30. Bxh6 {[%clk 0:00:29.8]} 30... Rg8+
{[%clk 0:00:19.7]} 31. Kf2 {[%clk 0:00:29]} 31... Bh4+ {[%clk 0:00:19]} 32. Ke3
{[%clk 0:00:22.3]} 32... Rg3+ {[%clk 0:00:18.3]} 33. Ke4 {[%clk 0:00:20.8]}
33... Rgxd3 {[%clk 0:00:16.2]} 34. Bf4 {[%clk 0:00:14.7]} 34... R3d7 {[%clk
0:00:10.8]} 35. Be5+ {[%clk 0:00:14]} 35... Kg8 {[%clk 0:00:10]} 36. Rg6+ {[%clk
0:00:13.6]} 36... Kh7 {[%clk 0:00:07.1]} 37. Rg7+ {[%clk 0:00:12.3]} 37... Rxg7
{[%clk 0:00:06.5]} 38. Rxg7+ {[%clk 0:00:12.1]} 38... Kh6 {[%clk 0:00:06.5]} 39.
f6 {[%clk 0:00:07.5]} 39... Kxh5 {[%clk 0:00:04.5]} 40. f7 {[%clk 0:00:06]}
40... Rf8 {[%clk 0:00:04.5]} 41. Kf5 {[%clk 0:00:04.9]} 41... Kh6 {[%clk
0:00:03.4]} 42. Ke6 {[%clk 0:00:03.6]} 42... Bd8 {[%clk 0:00:01.1]} 43. Rg8
{[%clk 0:00:03.7]} 1-0

[Event "Betsys MČR v online bleskovém šachu 2021"]
[Site "Chess.com"]
[Date "2021.04.17"]
[Round "9"]
[White "jankrelina07"]
[Black "trosecnik"]
[Result "1-0"]
[WhiteElo "1639"]
[BlackElo "1824"]
[TimeControl "180+1"]
[EndTime "10:31:08 PDT"]
[Termination "Uživatel jankrelina07 zvítězil na čas"]

1. d4 {[%clk 0:03:00.9]} 1... d5 {[%clk 0:02:55.8]} 2. Bf4 {[%clk 0:03:00.7]}
2... e6 {[%clk 0:02:51.7]} 3. e3 {[%clk 0:03:00.3]} 3... Nf6 {[%clk 0:02:51.3]}
4. Bd3 {[%clk 0:02:59.5]} 4... Be7 {[%clk 0:02:51]} 5. c3 {[%clk 0:02:59.5]}
5... Nbd7 {[%clk 0:02:43]} 6. Nf3 {[%clk 0:02:59.3]} 6... b6 {[%clk 0:02:31.2]}
7. Nbd2 {[%clk 0:02:57.1]} 7... c5 {[%clk 0:02:30]} 8. Qc2 {[%clk 0:02:55.2]}
8... Bb7 {[%clk 0:02:22.5]} 9. Ne5 {[%clk 0:02:53.7]} 9... Nh5 {[%clk
0:02:07.3]} 10. Nxd7 {[%clk 0:02:38.3]} 10... Qxd7 {[%clk 0:02:08.2]} 11. Bg3
{[%clk 0:02:37.7]} 11... Nxg3 {[%clk 0:02:03.6]} 12. hxg3 {[%clk 0:02:36.9]}
12... h6 {[%clk 0:02:03.1]} 13. b3 {[%clk 0:02:30.1]} 13... Rc8 {[%clk
0:01:46.3]} 14. Nf3 {[%clk 0:02:26.5]} 14... Bf6 {[%clk 0:01:45.7]} 15. Qe2
{[%clk 0:02:18.7]} 15... Ke7 {[%clk 0:01:39.7]} 16. Qd2 {[%clk 0:02:17.1]} 16...
Rc7 {[%clk 0:01:33.7]} 17. O-O {[%clk 0:02:10.5]} 17... c4 {[%clk 0:01:19.4]}
18. bxc4 {[%clk 0:02:04.4]} 18... dxc4 {[%clk 0:01:20.3]} 19. Be2 {[%clk
0:02:02.8]} 19... g5 {[%clk 0:01:12.8]} 20. Qb2 {[%clk 0:01:54.9]} 20... Qd6
{[%clk 0:01:00.4]} 21. Rad1 {[%clk 0:01:41.3]} 21... h5 {[%clk 0:00:58.3]} 22.
Nh2 {[%clk 0:01:38.5]} 22... Bg7 {[%clk 0:00:49.5]} 23. Qc2 {[%clk 0:01:21.6]}
23... f5 {[%clk 0:00:46.6]} 24. e4 {[%clk 0:01:21.2]} 24... Bxe4 {[%clk
0:00:45.2]} 25. Qd2 {[%clk 0:01:20.8]} 25... Bh6 {[%clk 0:00:33.1]} 26. Qe1
{[%clk 0:01:08.8]} 26... h4 {[%clk 0:00:31.6]} 27. Bf3 {[%clk 0:00:56.2]} 27...
Bxf3 {[%clk 0:00:25.5]} 28. Nxf3 {[%clk 0:00:55.6]} 28... hxg3 {[%clk
0:00:21.4]} 29. fxg3 {[%clk 0:00:54.6]} 29... Bg7 {[%clk 0:00:21.2]} 30. Qf2
{[%clk 0:00:50.5]} 30... Bf6 {[%clk 0:00:12.3]} 31. Rde1 {[%clk 0:00:41.4]}
31... Kf8 {[%clk 0:00:09.3]} 32. Nd2 {[%clk 0:00:35.9]} 32... Rch7 {[%clk
0:00:07.5]} 33. Qe3 {[%clk 0:00:27.2]} 33... Rh1+ {[%clk 0:00:05.8]} 34. Kf2
{[%clk 0:00:26.7]} 34... Rxf1+ {[%clk 0:00:05.7]} 35. Rxf1 {[%clk 0:00:24.9]}
35... Kf7 {[%clk 0:00:04]} 36. Re1 {[%clk 0:00:21]} 36... Qd5 {[%clk 0:00:03.4]}
37. Nf3 {[%clk 0:00:18.5]} 37... f4 {[%clk 0:00:02.7]} 38. gxf4 {[%clk
0:00:17.8]} 38... gxf4 {[%clk 0:00:02.9]} 39. Qxf4 {[%clk 0:00:17.8]} 39... Ke7
{[%clk 0:00:02.3]} 40. Qg4 {[%clk 0:00:16.3]} 40... Rf8 {[%clk 0:00:01.2]} 41.
Ne5 {[%clk 0:00:15.7]} 41... Bxe5+ {[%clk 0:00:01.4]} 42. Kg1 {[%clk 0:00:15]}
42... Bf6 {[%clk 0:00:01.9]} 43. Qg6 {[%clk 0:00:14.5]} 43... Qg5 {[%clk
0:00:02.2]} 44. Qe4 {[%clk 0:00:13.7]} 44... Kf7 {[%clk 0:00:01.5]} 45. Qxe6+
{[%clk 0:00:13.3]} 45... Kg7 {[%clk 0:00:01.7]} 46. Re4 {[%clk 0:00:11.8]} 1-0

[Event "Betsys MČR v online bleskovém šachu 2021"]
[Site "Chess.com"]
[Date "2021.04.17"]
[Round "9"]
[White "fortale"]
[Black "DenryS"]
[Result "0-1"]
[WhiteElo "2317"]
[BlackElo "2170"]
[TimeControl "180+1"]
[EndTime "10:31:09 PDT"]
[Termination "Uživatel DenryS zvítězil po vzdání soupeře"]

1. e4 {[%clk 0:03:00.9]} 1... c5 {[%clk 0:02:58.8]} 2. Nf3 {[%clk 0:03:00.7]}
2... Nc6 {[%clk 0:02:57.1]} 3. d4 {[%clk 0:03:00.5]} 3... cxd4 {[%clk
0:02:57.2]} 4. Nxd4 {[%clk 0:03:01.4]} 4... Nf6 {[%clk 0:02:57.1]} 5. Nc3 {[%clk
0:03:01.6]} 5... g6 {[%clk 0:02:56]} 6. Nxc6 {[%clk 0:02:54]} 6... bxc6 {[%clk
0:02:55.2]} 7. e5 {[%clk 0:02:53.7]} 7... Ng8 {[%clk 0:02:55.2]} 8. Bc4 {[%clk
0:02:51.7]} 8... Qa5 {[%clk 0:02:55.2]} 9. Qd4 {[%clk 0:01:56.9]} 9... Bg7
{[%clk 0:02:52.2]} 10. f4 {[%clk 0:01:50]} 10... Nh6 {[%clk 0:02:43.1]} 11. O-O
{[%clk 0:01:46.7]} 11... Nf5 {[%clk 0:02:39.1]} 12. Qf2 {[%clk 0:01:41.8]} 12...
h5 {[%clk 0:02:39]} 13. Bd3 {[%clk 0:01:38.3]} 13... d6 {[%clk 0:02:33.6]} 14.
Bxf5 {[%clk 0:01:34]} 14... Bxf5 {[%clk 0:02:29.8]} 15. exd6 {[%clk 0:01:30.7]}
15... exd6 {[%clk 0:02:29.2]} 16. Be3 {[%clk 0:01:30.6]} 16... O-O {[%clk
0:02:23.8]} 17. Bd4 {[%clk 0:01:30.8]} 17... Bxd4 {[%clk 0:02:12.2]} 18. Qxd4
{[%clk 0:01:31.7]} 18... Rab8 {[%clk 0:02:12.7]} 19. b3 {[%clk 0:01:14.8]} 19...
d5 {[%clk 0:01:57.6]} 20. Rf2 {[%clk 0:01:08.9]} 20... Rfe8 {[%clk 0:01:53.3]}
21. h3 {[%clk 0:01:00.5]} 21... c5 {[%clk 0:01:51.9]} 22. Qd2 {[%clk 0:00:50.5]}
22... d4 {[%clk 0:01:47.5]} 23. Nd5 {[%clk 0:00:46.6]} 23... Qd8 {[%clk
0:01:39.8]} 24. c4 {[%clk 0:00:38.8]} 24... Be4 {[%clk 0:01:31.6]} 25. Rc1
{[%clk 0:00:35]} 25... Bxd5 {[%clk 0:01:25.6]} 26. cxd5 {[%clk 0:00:35.9]} 26...
Qxd5 {[%clk 0:01:25.7]} 27. Qa5 {[%clk 0:00:36.5]} 27... Rbc8 {[%clk 0:01:01.5]}
28. f5 {[%clk 0:00:32]} 28... gxf5 {[%clk 0:00:48.2]} 29. Rcf1 {[%clk
0:00:30.8]} 29... Re5 {[%clk 0:00:44.1]} 30. Qxa7 {[%clk 0:00:29]} 30... d3
{[%clk 0:00:41.6]} 31. Qa5 {[%clk 0:00:28.3]} 31... Rd8 {[%clk 0:00:37.3]} 32.
Qd2 {[%clk 0:00:28.1]} 32... Qd4 {[%clk 0:00:34.7]} 33. Qg5+ {[%clk 0:00:26.9]}
33... Kf8 {[%clk 0:00:34.6]} 34. Kh1 {[%clk 0:00:25]} 34... d2 {[%clk
0:00:33.8]} 35. Rxf5 {[%clk 0:00:16.2]} 35... Rxf5 {[%clk 0:00:29.9]} 36. Qxf5
{[%clk 0:00:17.1]} 36... Rd7 {[%clk 0:00:12.8]} 37. Rd1 {[%clk 0:00:16.7]} 37...
Rd5 {[%clk 0:00:11.4]} 38. Qf3 {[%clk 0:00:15.2]} 38... Re5 {[%clk 0:00:11.1]}
39. Kh2 {[%clk 0:00:12.6]} 39... Re3 {[%clk 0:00:08.5]} 40. Qxh5 {[%clk
0:00:12.1]} 40... Qd6+ {[%clk 0:00:06.8]} 41. Kg1 {[%clk 0:00:11]} 41... Re1+
{[%clk 0:00:06.9]} 42. Kf2 {[%clk 0:00:11.4]} 42... Qf4+ {[%clk 0:00:05.6]} 43.
Qf3 {[%clk 0:00:08.3]} 43... Qxf3+ {[%clk 0:00:06]} 44. gxf3 {[%clk 0:00:08.5]}
44... Rxd1 {[%clk 0:00:06.5]} 45. Ke2 {[%clk 0:00:08.6]} 45... Ra1 {[%clk
0:00:07]} 46. Kxd2 {[%clk 0:00:09.1]} 46... Rxa2+ {[%clk 0:00:07.5]} 47. Kc3
{[%clk 0:00:10]} 47... Rf2 {[%clk 0:00:07.6]} 48. Kc4 {[%clk 0:00:10.4]} 48...
Rxf3 {[%clk 0:00:07.8]} 49. h4 {[%clk 0:00:11.1]} 49... Rh3 {[%clk 0:00:07.8]}
0-1

[Event "Betsys MČR v online bleskovém šachu 2021"]
[Site "Chess.com"]
[Date "2021.04.17"]
[Round "9"]
[White "vozmenmarcel"]
[Black "veronikam"]
[Result "1-0"]
[WhiteElo "1863"]
[BlackElo "1489"]
[TimeControl "180+1"]
[EndTime "10:31:10 PDT"]
[Termination "Uživatel vozmenmarcel zvítězil na čas"]

1. e4 {[%clk 0:03:00.9]} 1... c5 {[%clk 0:02:57.9]} 2. Nc3 {[%clk 0:02:59.9]}
2... e6 {[%clk 0:02:56.7]} 3. g3 {[%clk 0:03:00.4]} 3... a6 {[%clk 0:02:56.1]}
4. Bg2 {[%clk 0:03:00.2]} 4... Nc6 {[%clk 0:02:56.1]} 5. d3 {[%clk 0:03:00.3]}
5... g6 {[%clk 0:02:54.1]} 6. f4 {[%clk 0:03:00.1]} 6... Bg7 {[%clk 0:02:54.2]}
7. e5 {[%clk 0:02:59.9]} 7... Nge7 {[%clk 0:02:52.9]} 8. Ne4 {[%clk 0:02:59.6]}
8... d5 {[%clk 0:02:50.6]} 9. exd6 {[%clk 0:02:58.3]} 9... Nd5 {[%clk
0:02:45.2]} 10. c3 {[%clk 0:02:51.9]} 10... f5 {[%clk 0:02:40.5]} 11. Nxc5
{[%clk 0:02:48.1]} 11... Qxd6 {[%clk 0:02:40.5]} 12. Nb3 {[%clk 0:02:45.9]}
12... O-O {[%clk 0:02:39.5]} 13. Ne2 {[%clk 0:02:44.8]} 13... b5 {[%clk
0:02:31.4]} 14. d4 {[%clk 0:02:43.3]} 14... Bb7 {[%clk 0:02:30]} 15. O-O {[%clk
0:02:42.1]} 15... Rac8 {[%clk 0:02:25.7]} 16. Nc5 {[%clk 0:02:40.8]} 16... Ba8
{[%clk 0:02:21.9]} 17. Nxa6 {[%clk 0:02:34.5]} 17... Na5 {[%clk 0:02:18.4]} 18.
Nc5 {[%clk 0:02:31.5]} 18... Nc4 {[%clk 0:02:18.3]} 19. Qd3 {[%clk 0:02:18.3]}
19... Ndb6 {[%clk 0:02:02.3]} 20. b3 {[%clk 0:02:14.7]} 20... Bxg2 {[%clk
0:01:56.4]} 21. Kxg2 {[%clk 0:02:13.6]} 21... Rxc5 {[%clk 0:01:46.2]} 22. bxc4
{[%clk 0:02:10.7]} 22... Qc6+ {[%clk 0:01:40.4]} 23. Rf3 {[%clk 0:01:54.8]}
23... Rxc4 {[%clk 0:01:40.1]} 24. Ba3 {[%clk 0:01:50.5]} 24... Rc8 {[%clk
0:01:34.3]} 25. Bc5 {[%clk 0:01:32.7]} 25... Rd8 {[%clk 0:01:22.9]} 26. Bxb6
{[%clk 0:01:17.9]} 26... Qxb6 {[%clk 0:01:21.1]} 27. Rb1 {[%clk 0:01:17.3]}
27... Qa6 {[%clk 0:01:14.4]} 28. Rb2 {[%clk 0:01:12.8]} 28... Qa3 {[%clk
0:01:03.9]} 29. Qb1 {[%clk 0:01:10.3]} 29... Rb8 {[%clk 0:00:52.8]} 30. Rxb5
{[%clk 0:01:00.3]} 30... Rxb5 {[%clk 0:00:50.5]} 31. Qxb5 {[%clk 0:00:59.3]}
31... Qxa2 {[%clk 0:00:50.3]} 32. Qe8+ {[%clk 0:00:59.1]} 32... Bf8 {[%clk
0:00:46.1]} 33. Qxe6+ {[%clk 0:00:58.1]} 33... Kh8 {[%clk 0:00:44.2]} 34. Re3
{[%clk 0:00:52.6]} 34... Ra4 {[%clk 0:00:34.5]} 35. Qxa2 {[%clk 0:00:50.4]}
35... Rxa2 {[%clk 0:00:34.2]} 36. Re8 {[%clk 0:00:43.5]} 36... Kg7 {[%clk
0:00:33.6]} 37. Kf3 {[%clk 0:00:43.4]} 37... Kf7 {[%clk 0:00:32.6]} 38. Rc8
{[%clk 0:00:41.7]} 38... Bd6 {[%clk 0:00:27.3]} 39. Ke3 {[%clk 0:00:40.5]} 39...
Ke6 {[%clk 0:00:23.9]} 40. Kd3 {[%clk 0:00:40.4]} 40... Kf6 {[%clk 0:00:20.1]}
41. Rc6 {[%clk 0:00:38.7]} 41... Ke6 {[%clk 0:00:19.5]} 42. c4 {[%clk
0:00:38.3]} 42... Kd7 {[%clk 0:00:18.8]} 43. Rb6 {[%clk 0:00:35.4]} 43... Kc7
{[%clk 0:00:14.4]} 44. c5 {[%clk 0:00:34.6]} 44... Bf8 {[%clk 0:00:06.8]} 45.
Re6 {[%clk 0:00:32.8]} 45... Kd7 {[%clk 0:00:02.5]} 46. Re3 {[%clk 0:00:24.2]}
46... Kc6 {[%clk 0:00:02.1]} 47. Re6+ {[%clk 0:00:21.6]} 47... Kd7 {[%clk
0:00:01.6]} 48. Re5 {[%clk 0:00:20.3]} 48... Kc6 {[%clk 0:00:01.4]} 49. Nc3
{[%clk 0:00:17.7]} 1-0

[Event "Betsys MČR v online bleskovém šachu 2021"]
[Site "Chess.com"]
[Date "2021.04.17"]
[Round "9"]
[White "psvoboda72"]
[Black "Richter_Rudolf"]
[Result "0-1"]
[WhiteElo "1701"]
[BlackElo "1431"]
[TimeControl "180+1"]
[EndTime "10:31:11 PDT"]
[Termination "Uživatel Richter_Rudolf zvítězil matem"]

1. Nf3 {[%clk 0:02:58.6]} 1... c5 {[%clk 0:02:56]} 2. b3 {[%clk 0:02:56.9]} 2...
e6 {[%clk 0:02:49.3]} 3. Bb2 {[%clk 0:02:56.1]} 3... Nf6 {[%clk 0:02:47.4]} 4.
e3 {[%clk 0:02:55.9]} 4... d5 {[%clk 0:02:47.3]} 5. Bb5+ {[%clk 0:02:54.2]} 5...
Bd7 {[%clk 0:02:45.6]} 6. Bxd7+ {[%clk 0:02:49.6]} 6... Nbxd7 {[%clk 0:02:45]}
7. Ne5 {[%clk 0:02:47.7]} 7... Nxe5 {[%clk 0:02:39.9]} 8. Bxe5 {[%clk 0:02:46]}
8... Bd6 {[%clk 0:02:40.4]} 9. f4 {[%clk 0:02:33.5]} 9... Bxe5 {[%clk 0:02:38]}
10. fxe5 {[%clk 0:02:32.9]} 10... Ne4 {[%clk 0:02:22.3]} 11. O-O {[%clk
0:02:24.8]} 11... Qg5 {[%clk 0:02:05.4]} 12. Qf3 {[%clk 0:02:12.9]} 12... f6
{[%clk 0:01:34.6]} 13. d3 {[%clk 0:02:07.9]} 13... Qxe5 {[%clk 0:01:28.1]} 14.
dxe4 {[%clk 0:01:37]} 14... dxe4 {[%clk 0:01:21.6]} 15. Qe2 {[%clk 0:01:28.7]}
15... Qxa1 {[%clk 0:01:17.5]} 16. Qb5+ {[%clk 0:01:27.7]} 16... Ke7 {[%clk
0:01:16.7]} 17. Qxb7+ {[%clk 0:01:26]} 17... Kd6 {[%clk 0:00:47.1]} 18. Rd1+
{[%clk 0:01:23.7]} 18... Ke5 {[%clk 0:00:46.8]} 19. Qc7+ {[%clk 0:01:21.2]}
19... Kf5 {[%clk 0:00:45]} 20. Qf4+ {[%clk 0:01:13.3]} 20... Kg6 {[%clk
0:00:44.1]} 21. Qxe4+ {[%clk 0:01:12.2]} 21... f5 {[%clk 0:00:35]} 22. Qxe6+
{[%clk 0:00:59.3]} 22... Qf6 {[%clk 0:00:34.1]} 23. Qc6 {[%clk 0:00:53.5]} 23...
Qxc6 {[%clk 0:00:25.6]} 24. Rf1 {[%clk 0:00:29.3]} 24... Rhe8 {[%clk 0:00:19.9]}
25. Rf3 {[%clk 0:00:27]} 25... Re7 {[%clk 0:00:19]} 26. Nd2 {[%clk 0:00:25.6]}
26... Rae8 {[%clk 0:00:17.8]} 27. Kf2 {[%clk 0:00:26.3]} 27... Rxe3 {[%clk
0:00:12.1]} 28. Rxe3 {[%clk 0:00:25.6]} 28... Rxe3 {[%clk 0:00:12.5]} 29. Kxe3
{[%clk 0:00:26.2]} 29... Qe6+ {[%clk 0:00:12.4]} 30. Kf3 {[%clk 0:00:24.5]}
30... Qe5 {[%clk 0:00:11.9]} 31. Nc4 {[%clk 0:00:22.3]} 31... Qe4+ {[%clk
0:00:11.5]} 32. Kf2 {[%clk 0:00:21.1]} 32... f4 {[%clk 0:00:11.2]} 33. Nd2
{[%clk 0:00:18.5]} 33... Qxc2 {[%clk 0:00:11.2]} 34. Ke2 {[%clk 0:00:18]} 34...
Qxa2 {[%clk 0:00:10.6]} 35. Kd3 {[%clk 0:00:18.1]} 35... f3 {[%clk 0:00:10.6]}
36. gxf3 {[%clk 0:00:17.3]} 36... a5 {[%clk 0:00:09.3]} 37. f4 {[%clk
0:00:17.2]} 37... a4 {[%clk 0:00:08.9]} 38. Kc3 {[%clk 0:00:16.2]} 38... axb3
{[%clk 0:00:08.2]} 39. Nxb3 {[%clk 0:00:15.6]} 39... Qa3 {[%clk 0:00:07.3]} 40.
Kc4 {[%clk 0:00:13.2]} 40... Qb4+ {[%clk 0:00:06.5]} 41. Kd5 {[%clk 0:00:12.9]}
41... Qxb3+ {[%clk 0:00:06.4]} 42. Ke5 {[%clk 0:00:13.4]} 42... c4 {[%clk
0:00:06.8]} 43. f5+ {[%clk 0:00:13.6]} 43... Kf7 {[%clk 0:00:07.4]} 44. Kd4
{[%clk 0:00:13.5]} 44... c3 {[%clk 0:00:08]} 45. Ke5 {[%clk 0:00:14.4]} 45... c2
{[%clk 0:00:08.3]} 46. Kf4 {[%clk 0:00:13.9]} 46... c1=Q+ {[%clk 0:00:08.4]} 47.
Kg4 {[%clk 0:00:13]} 47... Qbc4+ {[%clk 0:00:07.6]} 48. Kh5 {[%clk 0:00:12.7]}
48... Qd1+ {[%clk 0:00:07]} 49. Kg5 {[%clk 0:00:09.5]} 49... h6# {[%clk
0:00:07.5]} 0-1

[Event "Betsys MČR v online bleskovém šachu 2021"]
[Site "Chess.com"]
[Date "2021.04.17"]
[Round "9"]
[White "MrNikdo"]
[Black "TrickyPeat"]
[Result "1-0"]
[WhiteElo "2058"]
[BlackElo "2184"]
[TimeControl "180+1"]
[EndTime "10:31:13 PDT"]
[Termination "Uživatel MrNikdo zvítězil na čas"]

1. e4 {[%clk 0:03:00.9]} 1... d5 {[%clk 0:02:59.2]} 2. exd5 {[%clk 0:03:00.6]}
2... Qxd5 {[%clk 0:02:59.2]} 3. Nc3 {[%clk 0:03:00.5]} 3... Qd6 {[%clk
0:02:59.2]} 4. Bc4 {[%clk 0:02:59.8]} 4... Nf6 {[%clk 0:02:58.4]} 5. Nf3 {[%clk
0:03:00.1]} 5... Nc6 {[%clk 0:02:54.8]} 6. d4 {[%clk 0:03:00.2]} 6... e6 {[%clk
0:02:53.4]} 7. Bg5 {[%clk 0:02:50.7]} 7... Be7 {[%clk 0:02:50.5]} 8. Qd2 {[%clk
0:02:48.7]} 8... a6 {[%clk 0:02:49.1]} 9. O-O {[%clk 0:02:38.4]} 9... O-O {[%clk
0:02:46.9]} 10. Rad1 {[%clk 0:02:35.4]} 10... b5 {[%clk 0:02:46.3]} 11. Bd3
{[%clk 0:02:29.2]} 11... Bb7 {[%clk 0:02:40.6]} 12. a3 {[%clk 0:02:19]} 12...
Rad8 {[%clk 0:02:37.4]} 13. Bxf6 {[%clk 0:02:10.3]} 13... Bxf6 {[%clk
0:02:36.4]} 14. Ne4 {[%clk 0:02:10.3]} 14... Qe7 {[%clk 0:02:34.5]} 15. Nc5
{[%clk 0:02:04.4]} 15... Bc8 {[%clk 0:02:28.7]} 16. c3 {[%clk 0:01:59.8]} 16...
e5 {[%clk 0:02:20.2]} 17. Rfe1 {[%clk 0:01:59.2]} 17... Rfe8 {[%clk 0:02:00.7]}
18. Re2 {[%clk 0:01:44.4]} 18... Qf8 {[%clk 0:01:57.2]} 19. Be4 {[%clk
0:01:13.9]} 19... Na5 {[%clk 0:01:49.7]} 20. Qc2 {[%clk 0:01:09.4]} 20... exd4
{[%clk 0:01:38.7]} 21. Bxh7+ {[%clk 0:01:08.5]} 21... Kh8 {[%clk 0:01:38.4]} 22.
Rxe8 {[%clk 0:01:01.6]} 22... Rxe8 {[%clk 0:01:28.6]} 23. b4 {[%clk 0:01:00]}
23... Nc4 {[%clk 0:01:23]} 24. cxd4 {[%clk 0:00:47]} 24... g6 {[%clk 0:01:14.2]}
25. Bxg6 {[%clk 0:00:43.8]} 25... fxg6 {[%clk 0:01:13.3]} 26. Qxg6 {[%clk
0:00:44.4]} 26... Re7 {[%clk 0:01:05.6]} 27. Rd3 {[%clk 0:00:32.7]} 27... Rg7
{[%clk 0:00:53.6]} 28. Qh5+ {[%clk 0:00:27.2]} 28... Rh7 {[%clk 0:00:52.4]} 29.
Qg6 {[%clk 0:00:25.2]} 29... Qf7 {[%clk 0:00:47.3]} 30. Qe4 {[%clk 0:00:20.6]}
30... Nd6 {[%clk 0:00:38.7]} 31. Qa8 {[%clk 0:00:17.2]} 31... Kg7 {[%clk
0:00:35.6]} 32. Ne5 {[%clk 0:00:17.4]} 32... Qh5 {[%clk 0:00:26.8]} 33. Rg3+
{[%clk 0:00:16.9]} 33... Bg5 {[%clk 0:00:25.9]} 34. h3 {[%clk 0:00:14.2]} 34...
Nf5 {[%clk 0:00:20.5]} 35. Rg4 {[%clk 0:00:12.9]} 35... Ne7 {[%clk 0:00:17.1]}
36. Rg3 {[%clk 0:00:10.7]} 36... Bf5 {[%clk 0:00:16.1]} 37. Qd8 {[%clk
0:00:05.9]} 37... Kf6 {[%clk 0:00:13.9]} 38. Nf3 {[%clk 0:00:05.9]} 38... Bf4
{[%clk 0:00:11.3]} 39. Nd7+ {[%clk 0:00:02.7]} 39... Bxd7 {[%clk 0:00:09.9]} 40.
Qxd7 {[%clk 0:00:03.6]} 40... Bxg3 {[%clk 0:00:09.4]} 41. fxg3 {[%clk
0:00:04.2]} 41... Qf5 {[%clk 0:00:08.1]} 42. Qxc7 {[%clk 0:00:03.1]} 42... Qb1+
{[%clk 0:00:06.4]} 43. Kh2 {[%clk 0:00:03]} 43... Qe4 {[%clk 0:00:05.6]} 44.
Qd6+ {[%clk 0:00:03.1]} 1-0